[Event "23rd OIBM 2019"]
[Site "Gmund am Tegernsee"]
[Date "2019.10.28"]
[Round "3.33"]
[White "Schaefer, Michael"]
[Black "Schuster, Karsten"]
[Result "1-0"]
[ECO "A46"]
[WhiteElo "2160"]
[BlackElo "2304"]
[Annotator "RC"]
[PlyCount "95"]
[EventDate "2019.10.17"]
[EventType "swiss"]
[EventCountry "GER"]
[SourceTitle "playchess.com"]
[Source "ChessBase"]
[SourceQuality "1"]
[TimeControl "40/5400+30:1800+30"]

1. d4 {[%emt 0:00:00]} Nf6 {[%emt 0:00:00]} 2. Nf3 {[%emt 0:00:00]} e6 {[%emt 0:00:00]} 3. e3 {[%emt 0:00:00]} b6 {[%emt 0:00:01]} 4. Bd3 {[%emt 0:00:12]} Bb7 {[%emt 0:00:11]} 5. O-O {[%emt 0:00:17]} Be7 {[%emt 0:00:41]} 6. Nbd2 {[%emt 0:03:36]} d5 {[%emt 0:02:35]} 7. b3 {[%emt 0:01:03]} O-O {[%emt 0:00:37]} 8. Bb2 {[%emt 0:00:19]} c5 {[%emt 0:05:48]} 9. Ne5 {[%emt 0:04:39]} Nc6 {[%emt 0:07:58]} 10. a3 {[%emt 0:05:19]} cxd4 {[%emt 0:04:49]} 11. exd4 {[%emt 0:01:39]} Ne8 {[%emt 0:13:40]} 12. Qh5 {[%emt 0:04:33]} f5 {[%emt 0:00:33]} 13. Qe2 {[%emt 0:03:51]} Rf6 {[%emt 0:09:54]} 14. Rfe1 {[%emt 0:10:21]} Nxe5 {[%emt 0:04:43]} 15. dxe5 {[%emt 0:00:56]} Rh6 {[%emt 0:00:43]} 16. Nf3 {[%emt 0:00:59]} g5 {[%emt 0:02:37]} 17. Nd4 {[%emt 0:03:11]} Ng7 {[%emt 0:02:49]} 18. b4 {[%emt 0:03:19]} g4 {[%emt 0:10:16]} 19. f4 {[%emt 0:05:26]} gxf3 {[%emt 0:00:25]} 20. Qxf3 {[%emt 0:01:24]} a5 {[%emt 0:03:49]} 21. c3 {[%emt 0:00:33]} Qc8 {[%emt 0:04:00]} 22. Bb5 {[%emt 0:10:30]} Rh4 {[%emt 0:03:55]} 23. g3 {[%emt 0:04:30]} Rg4 {[%emt 0:00:53]} 24. h3 {[%emt 0:01:34]} Rg6 {[%emt 0:00:55]} 25. Kh2 {[%emt 0:00:11]} Kh8 {[%emt 0:01:19]} 26. Rg1 {[%emt 0:04:21]} Qc7 {[%emt 0:00:19]} 27. Rae1 {[%emt 0:00:40]} Rg8 {[%emt 0:01:03]} 28. Bc1 {[%emt 0:04:10]} Bc8 {[%emt 0:04:16]} 29. Bf4 {[%emt 0:03:09]} Bd7 {[%emt 0:00:35]} 30. Be2 {[%emt 0:01:13]} Ra8 {[%emt 0:03:29]} 31. Rc1 {[%emt 0:00:48]} Qa7 {[%emt 0:01:41]} 32. g4 {[%emt 0:04:21]} fxg4 {[%emt 0:01:27]} 33. Rxg4 {[%emt 0:00:11]} Rxg4 {[%emt 0:02:08]} 34. hxg4 {[%emt 0:00:48]} Rf8 {[%emt 0:00:58]} 35. Qe3 {[%emt 0:02:30]} Rf7 {[%emt 0:02:08]} 36. Bd3 {[%emt 0:00:22]} Qb8 {[%emt 0:01:02]} 37. Kg2 {[%emt 0:02:29]} Qg8 {[%emt 0:02:54]} 38. Rh1 {[%emt 0:04:14]} Nf5 {[%emt 0:01:54]} 39. Bxf5 {[%emt 0:00:37]} exf5 {[%emt 0:00:23]} 40. g5 {[%emt 0:00:15]} Bxg5 {[%emt 0:01:09]} 41. Kf2 {[%emt 0:32:46]} Bxf4 {[%emt 0:02:43]} 42. Qxf4 {[%emt 0:00:00]} Rg7 {[%emt 0:00:16]} 43. e6 {[%emt 0:00:00]} Bxe6 {[%emt 0:02:28]} 44. Qe5 {[%emt 0:00:00]} Bd7 {[%emt 0:01:13]} 45. Rh6 {[%emt 0:00:00]} Qd8 {[%emt 0:03:58]} 46. Kf3 {[%emt 0:00:00]} Qc8 {[%emt 0:04:07]} 47. Ne6 {[%emt 0:00:00]} Bxe6 {[%emt 0:07:16]} 48. Rxe6 {[%emt 0:00:00]} 1-0

[Event "23rd OIBM 2019"]
[Site "Gmund am Tegernsee"]
[Date "2019.10.28"]
[Round "3.37"]
[White "Buchal, Stephan"]
[Black "Seisenberger, Georg"]
[Result "1-0"]
[ECO "A11"]
[WhiteElo "2274"]
[BlackElo "2072"]
[Annotator "NA RC"]
[PlyCount "71"]
[EventDate "2019.10.17"]
[EventType "swiss"]
[EventCountry "GER"]
[SourceTitle "playchess.com"]
[Source "ChessBase"]
[SourceQuality "1"]
[TimeControl "40/5400+30:1800+30"]

1. c4 {[%emt 0:00:00]} c6 {[%emt 0:00:00]} 2. Nf3 {[%emt 0:00:00]} d5 {[%emt 0:00:00]} 3. g3 {[%emt 0:00:12]} Bg4 {[%emt 0:00:00]} 4. Bg2 {[%emt 0:02:24]} e6 {[%emt 0:00:54]} 5. b3 {[%emt 0:02:26]} Nf6 {[%emt 0:01:56]} 6. Bb2 {[%emt 0:00:22]} Be7 {[%emt 0:00:57]} 7. O-O {[%emt 0:00:15]} O-O {[%emt 0:01:10]} 8. d3 {[%emt 0:00:15]} Nbd7 {[%emt 0:01:49]} 9. Nbd2 {[%emt 0:00:23]} a5 {[%emt 0:01:02]} 10. a3 {[%emt 0:00:13]} Rc8 {[%emt 0:02:50]} 11. Rc1 {[%emt 0:09:05]} Qb6 {[%emt 0:05:48]} 12. Qc2 {[%emt 0:07:21]} Rfd8 {[%emt 0:16:47]} 13. cxd5 {[%emt 0:06:59]} exd5 {[%emt 0:02:00]} 14. e4 {[%emt 0:02:12]} Nf8 {[%emt 0:11:27]} 15. h3 {[%emt 0:12:05]} Bh5 {[%emt 0:07:34]} 16. Nh4 {[%emt 0:03:17]} Bg6 {[%emt 0:03:15]} 17. Kh2 {[%emt 0:04:26]} Ne8 {[%emt 0:11:59]} 18. Nxg6 {[%emt 0:01:54]} hxg6 {[%emt 0:02:22]} 19. f4 {[%emt 0:12:15]} Nc7 {[%emt 0:08:58]} 20. Nf3 {[%emt 0:03:04]} Bf6 {[%emt 0:04:51]} 21. e5 {[%emt 0:07:36]} Be7 {[%emt 0:00:07]} 22. h4 {[%emt 0:01:49]} Nb5 {[%emt 0:01:29]} 23. a4 {[%emt 0:02:16]} Nc7 {[%emt 0:00:14]} 24. Bh3 {[%emt 0:06:33]} Nfe6 {[%emt 0:01:30]} 25. h5 {[%emt 0:01:24]} gxh5 {[%emt 0:04:51]} 26. f5 {[%emt 0:00:29]} Ng5 {[%emt 0:00:40]} 27. f6 {[%emt 0:00:46]} Nxf3+ {[%emt 0:00:08]} 28. Rxf3 {[%emt 0:00:07]} gxf6 {[%emt 0:01:19]} 29. exf6 {[%emt 0:00:40]} Bd6 {[%emt 0:01:02]} 30. Qd2 {[%emt 0:02:28]} Ne6 {[%emt 0:02:05]} 31. Bxe6 {[%emt 0:00:32]} fxe6 {[%emt 0:00:01]} 32. Qg5+ {[%emt 0:00:31]} Kf8 {[%emt 0:00:42]} 33. Qg7+ {[%emt 0:00:30]} Ke8 {[%emt 0:00:02]} 34. f7+ {[%emt 0:00:17]} Kd7 {[%emt 0:00:20]} 35. f8=Q+ {[%emt 0:00:09]} Be7 {[%emt 0:00:02]} 36. Qfxe7# {[%emt 0:00:10]} 1-0

[Event "23rd OIBM 2019"]
[Site "Gmund am Tegernsee"]
[Date "2019.10.28"]
[Round "3.39"]
[White "Lorscheid, Gerhard"]
[Black "Mooser, Nicolas"]
[Result "1/2-1/2"]
[ECO "A13"]
[WhiteElo "2257"]
[BlackElo "1999"]
[Annotator "RC"]
[PlyCount "122"]
[EventDate "2019.10.17"]
[EventType "swiss"]
[EventCountry "GER"]
[SourceTitle "playchess.com"]
[Source "ChessBase"]
[SourceQuality "1"]
[TimeControl "40/5400+30:1800+30"]

1. c4 {[%emt 0:00:00]} e6 {[%emt 0:00:00]} 2. Nf3 {[%emt 0:00:00]} d5 {[%emt 0:00:00]} 3. b3 {[%emt 0:00:19]} Nf6 {[%emt 0:00:36]} 4. Bb2 {[%emt 0:00:14]} c6 {[%emt 0:00:17]} 5. e3 {[%emt 0:00:43]} Nbd7 {[%emt 0:01:00]} 6. Qc2 {[%emt 0:01:54]} Bd6 {[%emt 0:00:28]} 7. d4 {[%emt 0:06:33]} O-O {[%emt 0:00:45]} 8. Bd3 {[%emt 0:04:56]} Qe7 {[%emt 0:14:30]} 9. Nbd2 {[%emt 0:12:17]} e5 {[%emt 0:13:08]} 10. cxd5 {[%emt 0:00:33]} cxd5 {[%emt 0:00:15]} 11. dxe5 {[%emt 0:01:47]} Nxe5 {[%emt 0:00:11]} 12. Nxe5 {[%emt 0:00:15]} Bxe5 {[%emt 0:00:04]} 13. Bxe5 {[%emt 0:00:11]} Qxe5 {[%emt 0:00:05]} 14. Rc1 {[%emt 0:02:01]} Bg4 {[%emt 0:01:32]} 15. O-O {[%emt 0:05:30]} Rac8 {[%emt 0:06:18]} 16. Qb1 {[%emt 0:00:29]} Rcd8 {[%emt 0:11:56]} 17. Rfe1 {[%emt 0:15:57]} Rd7 {[%emt 0:07:33]} 18. h3 {[%emt 0:02:53]} Bh5 {[%emt 0:02:09]} 19. Bf5 {[%emt 0:02:51]} Rdd8 {[%emt 0:03:16]} 20. g4 {[%emt 0:00:40]} Bg6 {[%emt 0:00:50]} 21. Nf3 {[%emt 0:00:06]} Bxf5 {[%emt 0:01:03]} 22. Qxf5 {[%emt 0:00:22]} Qxf5 {[%emt 0:04:27]} 23. gxf5 {[%emt 0:00:02]} Rc8 {[%emt 0:00:26]} 24. Nd4 {[%emt 0:01:38]} Rfe8 {[%emt 0:02:06]} 25. Nb5 {[%emt 0:06:05]} Rcd8 {[%emt 0:03:01]} 26. Rc7 {[%emt 0:02:29]} a6 {[%emt 0:01:50]} 27. Nd4 {[%emt 0:00:12]} Rb8 {[%emt 0:04:41]} 28. Rec1 {[%emt 0:04:29]} Kf8 {[%emt 0:00:35]} 29. Kf1 {[%emt 0:03:56]} Red8 {[%emt 0:01:48]} 30. Nf3 {[%emt 0:02:18]} Ne8 {[%emt 0:01:48]} 31. R7c5 {[%emt 0:01:31]} Rd6 {[%emt 0:01:45]} 32. Rd1 {[%emt 0:05:43]} Rbd8 {[%emt 0:00:43]} 33. Rd4 {[%emt 0:00:42]} Ke7 {[%emt 0:02:06]} 34. Rb4 {[%emt 0:02:07]} b6 {[%emt 0:01:16]} 35. Rc1 {[%emt 0:00:08]} R8d7 {[%emt 0:02:21]} 36. Ne5 {[%emt 0:02:34]} Rc7 {[%emt 0:00:17]} 37. Rxc7+ {[%emt 0:01:34]} Nxc7 {[%emt 0:00:04]} 38. Rh4 {[%emt 0:01:57]} h6 {[%emt 0:00:49]} 39. Rf4 {[%emt 0:01:52]} Nb5 {[%emt 0:03:03]} 40. a4 {[%emt 0:02:51]} Nc3 {[%emt 0:01:10]} 41. Nf3 {[%emt 0:31:04]} Ne4 {[%emt 0:31:02]} 42. Nd4 {[%emt 0:02:03]} Rd7 {[%emt 0:05:06]} 43. f3 {[%emt 0:00:09]} Nf6 {[%emt 0:00:37]} 44. Ke2 {[%emt 0:00:23]} Kd6 {[%emt 0:02:51]} 45. Kd2 {[%emt 0:02:00]} Rc7 {[%emt 0:01:15]} 46. Nc2 {[%emt 0:02:11]} Ke5 {[%emt 0:00:00]} 47. Nb4 {[%emt 0:00:00]} a5 {[%emt 0:00:00]} 48. Nd3+ {[%emt 0:00:00]} Kd6 {[%emt 0:00:00]} 49. Rd4 {[%emt 0:00:00]} Re7 {[%emt 0:00:00]} 50. b4 {[%emt 0:00:00]} axb4 {[%emt 0:00:00]} 51. Rxb4 {[%emt 0:00:00]} Kc6 {[%emt 0:00:00]} 52. Rb5 {[%emt 0:00:00]} Ra7 {[%emt 0:00:00]} 53. Rb4 {[%emt 0:00:00]} Nd7 {[%emt 0:00:00]} 54. Rg4 {[%emt 0:00:00]} f6 {[%emt 0:00:00]} 55. Rxg7 {[%emt 0:00:00]} Rxa4 {[%emt 0:00:00]} 56. Kc3 {[%emt 0:00:00]} Nc5 {[%emt 0:00:00]} 57. Nxc5 {[%emt 0:00:00]} Kxc5 {[%emt 0:00:00]} 58. Rc7+ {[%emt 0:00:00]} Kd6 {[%emt 0:00:00]} 59. Rb7 {[%emt 0:00:00]} Ra3+ {[%emt 0:00:00]} 60. Kd4 {[%emt 0:00:00]} Ra4+ {[%emt 0:00:00]} 61. Kd3 {[%emt 0:00:00]} Ra3+ {[%emt 0:00:00] Ke4 Ke5#} 1/2-1/2

[Event "23rd OIBM 2019"]
[Site "Gmund am Tegernsee"]
[Date "2019.10.28"]
[Round "3.41"]
[White "Ries, Berthold"]
[Black "Schoenberger, Peter"]
[Result "0-1"]
[ECO "C88"]
[WhiteElo "1854"]
[BlackElo "2040"]
[Annotator "NA RC"]
[PlyCount "76"]
[EventDate "2019.10.17"]
[EventType "swiss"]
[EventCountry "GER"]
[SourceTitle "playchess.com"]
[Source "ChessBase"]
[SourceQuality "1"]
[TimeControl "40/5400+30:1800+30"]

1. e4 {[%emt 0:00:00]} e5 {[%emt 0:00:00]} 2. Nf3 {[%emt 0:00:00]} Nc6 {[%emt 0:00:00]} 3. Bb5 {[%emt 0:00:00]} a6 {[%emt 0:00:00]} 4. Ba4 {[%emt 0:00:05]} Nf6 {[%emt 0:00:59]} 5. O-O {[%emt 0:00:09]} b5 {[%emt 0:03:11]} 6. Bb3 {[%emt 0:04:17]} Be7 {[%emt 0:00:29]} 7. Re1 {[%emt 0:00:19]} O-O {[%emt 0:02:21]} 8. a4 {[%emt 0:00:11]} b4 {[%emt 0:02:16]} 9. a5 {[%emt 0:00:25]} d6 {[%emt 0:01:05]} 10. h3 {[%emt 0:05:42]} Rb8 {[%emt 0:00:44]} 11. c4 {[%emt 0:15:10]} Nd7 {[%emt 0:04:25]} 12. Ba4 {[%emt 0:10:20]} Bb7 {[%emt 0:01:59]} 13. d3 {[%emt 0:03:34]} Nc5 {[%emt 0:07:47]} 14. Bxc6 {[%emt 0:00:47]} Bxc6 {[%emt 0:00:10]} 15. Be3 {[%emt 0:00:30]} Ne6 {[%emt 0:04:12]} 16. Nbd2 {[%emt 0:01:31]} Bf6 {[%emt 0:07:40]} 17. Nf1 {[%emt 0:04:09]} Bb7 {[%emt 0:02:00]} 18. Ng3 {[%emt 0:02:28]} g6 {[%emt 0:01:11]} 19. Bh6 {[%emt 0:04:18]} Bg7 {[%emt 0:01:08]} 20. Qd2 {[%emt 0:01:21]} c5 {[%emt 0:07:30]} 21. Nh2 {[%emt 0:02:06]} Qh4 {[%emt 0:06:44]} 22. Ng4 {[%emt 0:05:35]} Bxh6 {[%emt 0:16:49]} 23. Qxh6 {[%emt 0:03:19]} Qxh6 {[%emt 0:00:29]} 24. Nxh6+ {[%emt 0:00:15]} Kg7 {[%emt 0:00:44]} 25. Ng4 {[%emt 0:00:37]} Nd4 {[%emt 0:02:15]} 26. Ne3 {[%emt 0:05:06]} f5 {[%emt 0:02:05]} 27. exf5 {[%emt 0:00:27]} gxf5 {[%emt 0:00:16]} 28. Ne2 {[%emt 0:00:52]} Nb3 {[%emt 0:08:08]} 29. Ra2 {[%emt 0:00:46]} f4 {[%emt 0:00:19]} 30. Nd5 {[%emt 0:03:07]} Bxd5 {[%emt 0:03:20]} 31. cxd5 {[%emt 0:00:12]} Rfc8 {[%emt 0:03:24]} 32. Nc1 {[%emt 0:02:05]} Nd4 {[%emt 0:01:14]} 33. Ne2 {[%emt 0:03:28]} b3 {[%emt 0:01:37]} 34. Ra4 {[%emt 0:00:36]} Nc2 {[%emt 0:00:06]} 35. Rc1 {[%emt 0:01:46]} Nb4 {[%emt 0:00:13]} 36. d4 {[%emt 0:01:14]} Nd3 {[%emt 0:01:01]} 37. Rc3 {[%emt 0:01:26]} Nxb2 {[%emt 0:00:51]} 38. dxe5 {[%emt 0:03:11]} Nxa4 {[%emt 0:00:09]} 0-1

[Event "23rd OIBM 2019"]
[Site "Gmund am Tegernsee"]
[Date "2019.10.29"]
[Round "4.16"]
[White "Del Rio De Angelis, Salvador G."]
[Black "Schaefer, Michael"]
[Result "1-0"]
[ECO "D56"]
[WhiteElo "2491"]
[BlackElo "2160"]
[Annotator "ChessBase"]
[PlyCount "214"]
[EventDate "2019.10.17"]
[EventType "swiss"]
[EventCountry "GER"]
[SourceTitle "playchess.com"]
[Source "ChessBase"]
[SourceQuality "1"]
[TimeControl "40/5400+30:1800+30"]

1. d4 {[%emt 0:00:00]} d5 {[%emt 0:00:00]} 2. c4 {[%emt 0:00:00]} e6 {[%emt 0:00:00]} 3. Nc3 {[%emt 0:00:14]} Nf6 {[%emt 0:00:00]} 4. Bg5 {[%emt 0:00:16]} Be7 {[%emt 0:00:00]} 5. e3 {[%emt 0:00:28]} h6 {[%emt 0:00:10]} 6. Bh4 {[%emt 0:00:08]} O-O {[%emt 0:00:06]} 7. Nf3 {[%emt 0:00:36]} Ne4 {[%emt 0:00:14]} 8. Bxe7 {[%emt 0:00:20]} Qxe7 {[%emt 0:00:04]} 9. Rc1 {[%emt 0:00:12]} c6 {[%emt 0:00:30]} 10. Bd3 {[%emt 0:00:28]} Nxc3 {[%emt 0:00:25]} 11. Rxc3 {[%emt 0:00:09]} Nd7 {[%emt 0:00:07]} 12. cxd5 {[%emt 0:00:14]} exd5 {[%emt 0:00:24]} 13. O-O {[%emt 0:00:13]} Re8 {[%emt 0:01:52]} 14. Qc2 {[%emt 0:00:10]} Nf8 {[%emt 0:03:12]} 15. Ne5 {[%emt 0:02:01]} Be6 {[%emt 0:01:33]} 16. Rb1 {[%emt 0:03:58]} a5 {[%emt 0:07:55]} 17. Qb3 {[%emt 0:04:22]} Reb8 {[%emt 0:05:11]} 18. Qc2 {[%emt 0:19:33]} Nd7 {[%emt 0:06:46]} 19. Nf3 {[%emt 0:00:23]} Bg4 {[%emt 0:02:46]} 20. Nd2 {[%emt 0:00:27]} Nf8 {[%emt 0:00:15]} 21. a3 {[%emt 0:04:09]} a4 {[%emt 0:05:07]} 22. b3 {[%emt 0:04:28]} axb3 {[%emt 0:01:42]} 23. Rbxb3 {[%emt 0:00:21]} Bh5 {[%emt 0:08:42]} 24. Qb2 {[%emt 0:01:51]} Qd7 {[%emt 0:05:21]} 25. Rc1 {[%emt 0:05:13]} Bg6 {[%emt 0:01:19]} 26. Nf3 {[%emt 0:02:30]} Bxd3 {[%emt 0:03:07]} 27. Ne5 {[%emt 0:00:09]} Qc7 {[%emt 0:09:00]} 28. Nxd3 {[%emt 0:00:12]} Ne6 {[%emt 0:00:35]} 29. h3 {[%emt 0:01:29]} Nd8 {[%emt 0:02:30]} 30. Nc5 {[%emt 0:09:37]} b5 {[%emt 0:09:31]} 31. Nd3 {[%emt 0:01:06]} Qd6 {[%emt 0:01:49]} 32. Nb4 {[%emt 0:01:14]} Rb6 {[%emt 0:01:52]} 33. Rbc3 {[%emt 0:00:38]} g6 {[%emt 0:02:20]} 34. R1c2 {[%emt 0:01:40]} Ra4 {[%emt 0:02:05]} 35. Rc5 {[%emt 0:02:35]} Kh7 {[%emt 0:08:52]} 36. Qc1 {[%emt 0:00:35]} Qd7 {[%emt 0:04:23]} 37. R2c3 {[%emt 0:04:02]} Qa7 {[%emt 0:00:36]} 38. Kh2 {[%emt 0:09:59]} Kg7 {[%emt 0:00:18]} 39. Qb2 {[%emt 0:01:27]} Qd7 {[%emt 0:01:26]} 40. Qc1 {[%emt 0:03:32]} Qa7 {[%emt 0:00:13]} 41. g3 {[%emt 0:34:03]} Kh7 {[%emt 0:30:52]} 42. h4 {[%emt 0:02:01]} h5 {[%emt 0:00:07]} 43. Kg2 {[%emt 0:00:49]} Kg7 {[%emt 0:00:13]} 44. Rb3 {[%emt 0:06:52]} Qd7 {[%emt 0:00:52]} 45. Qc3 {[%emt 0:01:10]} Kh7 {[%emt 0:00:27]} 46. Qc2 {[%emt 0:01:54]} Kg7 {[%emt 0:00:16]} 47. Rcc3 {[%emt 0:01:16]} Qa7 {[%emt 0:02:15]} 48. Qc1 {[%emt 0:00:00]} Qd7 {[%emt 0:00:00]} 49. Rb2 {[%emt 0:00:00]} Kh7 {[%emt 0:00:00]} 50. Rbc2 {[%emt 0:00:00]} Qa7 {[%emt 0:00:00]} 51. Qb2 {[%emt 0:00:00]} Qd7 {[%emt 0:00:00]} 52. Rc1 {[%emt 0:00:00]} Kg8 {[%emt 0:00:00]} 53. Qc2 {[%emt 0:00:00]} Qa7 {[%emt 0:00:00]} 54. Nxc6 {[%emt 0:00:00]} Nxc6 {[%emt 0:00:00]} 55. Rxc6 {[%emt 0:00:00]} Rc4 {[%emt 0:00:00]} 56. Rc8+ {[%emt 0:00:00]} Kg7 {[%emt 0:00:00]} 57. Qb3 {[%emt 0:00:00]} Qb7 {[%emt 0:00:00]} 58. Rc5 {[%emt 0:00:00]} Qe7 {[%emt 0:00:00]} 59. Qd3 {[%emt 0:00:00]} Ra6 {[%emt 0:00:00]} 60. Rb1 {[%emt 0:00:00]} Rxc5 {[%emt 0:00:00]} 61. dxc5 {[%emt 0:00:00]} Qxc5 {[%emt 0:00:00]} 62. Rxb5 {[%emt 0:00:00]} Rxa3 {[%emt 0:00:00]} 63. Qxd5 {[%emt 0:00:00]} Qxd5+ {[%emt 0:00:00]} 64. Rxd5 {[%emt 0:00:00]} Ra4 {[%emt 0:00:00]} 65. Kf3 {[%emt 0:00:00]} Rb4 {[%emt 0:00:00]} 66. e4 {[%emt 0:00:00]} Kf6 {[%emt 0:00:00]} 67. Kf4 {[%emt 0:00:00]} Ra4 {[%emt 0:01:11]} 68. Rd6+ {[%emt 0:00:00]} Kg7 {[%emt 0:00:57]} 69. f3 {[%emt 0:00:11]} Rb4 {[%emt 0:00:29]} 70. Rd8 {[%emt 0:02:23]} Ra4 {[%emt 0:00:17]} 71. Re8 {[%emt 0:01:02]} Rb4 {[%emt 0:00:35]} 72. g4 {[%emt 0:00:16]} hxg4 {[%emt 0:00:17]} 73. Kxg4 {[%emt 0:00:05]} Ra4 {[%emt 0:00:59]} 74. h5 {[%emt 0:01:09]} gxh5+ {[%emt 0:00:12]} 75. Kxh5 {[%emt 0:00:14]} Kf6 {[%emt 0:03:29]} 76. Kg4 {[%emt 0:00:49]} Ra1 {[%emt 0:00:47]} 77. e5+ {[%emt 0:01:06]} Kg6 {[%emt 0:01:41]} 78. Rg8+ {[%emt 0:00:43]} Kh7 {[%emt 0:00:45]} 79. Rg5 {[%emt 0:00:14]} Ra6 {[%emt 0:01:19]} 80. Kf5 {[%emt 0:00:27]} Rb6 {[%emt 0:00:22]} 81. f4 {[%emt 0:00:09]} Ra6 {[%emt 0:00:06]} 82. Rg1 {[%emt 0:00:36]} Rb6 {[%emt 0:00:54]} 83. Rg4 {[%emt 0:01:29]} Kh6 {[%emt 0:01:10]} 84. Rg2 {[%emt 0:01:27]} Ra6 {[%emt 0:00:15]} 85. Rd2 {[%emt 0:00:25]} Kg7 {[%emt 0:00:22]} 86. Rd6 {[%emt 0:00:15]} Ra4 {[%emt 0:00:21]} 87. Kg5 {[%emt 0:03:05]} Ra5 {[%emt 0:00:44]} 88. Rd7 {[%emt 0:00:32]} Rb5 {[%emt 0:02:01]} 89. Kg4 {[%emt 0:01:40]} Kf8 {[%emt 0:01:20]} 90. Kf5 {[%emt 0:00:11]} Kg7 {[%emt 0:00:16]} 91. Ke4 {[%emt 0:00:09]} Rb4+ {[%emt 0:00:51]} 92. Rd4 {[%emt 0:00:09]} Rb1 {[%emt 0:00:10]} 93. f5 {[%emt 0:00:18]} Re1+ {[%emt 0:00:58]} 94. Kd5 {[%emt 0:00:07]} Rf1 {[%emt 0:00:15]} 95. f6+ {[%emt 0:05:20]} Kg6 {[%emt 0:00:15]} 96. Kd6 {[%emt 0:00:20]} Re1 {[%emt 0:01:49]} 97. Rd5 {[%emt 0:00:30]} Ra1 {[%emt 0:00:28]} 98. Ke7 {[%emt 0:00:16]} Ra7+ {[%emt 0:01:06]} 99. Rd7 {[%emt 0:00:12]} Ra5 {[%emt 0:00:46]} 100. e6 {[%emt 0:01:07]} fxe6 {[%emt 0:00:18]} 101. f7 {[%emt 0:00:46]} Rf5 {[%emt 0:00:18]} 102. f8=Q {[%emt 0:00:31]} Rxf8 {[%emt 0:00:22]} 103. Kxf8 {[%emt 0:00:05]} Kf5 {[%emt 0:00:19]} 104. Ke7 {[%emt 0:00:15]} e5 {[%emt 0:00:10]} 105. Kd6 {[%emt 0:00:04]} e4 {[%emt 0:00:38]} 106. Kd5 {[%emt 0:00:10]} e3 {[%emt 0:00:18]} 107. Re7 {[%emt 0:00:14]} Kf4 {[%emt 0:00:13] Ke4+} 1-0

[Event "23rd OIBM 2019"]
[Site "Gmund am Tegernsee"]
[Date "2019.10.29"]
[Round "4.19"]
[White "Parvanyan, Ashot"]
[Black "Fauth, Dietmar"]
[Result "1-0"]
[ECO "E06"]
[WhiteElo "2448"]
[BlackElo "2099"]
[Annotator "ChessBase"]
[PlyCount "53"]
[EventDate "2019.10.17"]
[EventType "swiss"]
[EventCountry "GER"]
[SourceTitle "playchess.com"]
[Source "ChessBase"]
[SourceQuality "1"]
[TimeControl "40/5400+30:1800+30"]

1. Nf3 {[%emt 0:00:00]} d5 {[%emt 0:00:00]} 2. d4 {[%emt 0:00:34]} Nf6 {[%emt 0:01:14]} 3. c4 {[%emt 0:00:32]} e6 {[%emt 0:00:38]} 4. g3 {[%emt 0:00:25]} Be7 {[%emt 0:01:19]} 5. Bg2 {[%emt 0:00:24]} O-O {[%emt 0:00:10]} 6. O-O {[%emt 0:00:07]} dxc4 {[%emt 0:02:41]} 7. Qc2 {[%emt 0:00:31]} a6 {[%emt 0:01:57]} 8. a4 {[%emt 0:00:21]} Bd7 {[%emt 0:07:55]} 9. Qxc4 {[%emt 0:00:21]} Bc6 {[%emt 0:01:11]} 10. Bg5 {[%emt 0:00:23]} Nbd7 {[%emt 0:13:33]} 11. Nc3 {[%emt 0:01:52]} h6 {[%emt 0:04:07]} 12. Bxf6 {[%emt 0:00:30]} Nxf6 {[%emt 0:01:39]} 13. b4 {[%emt 0:03:03]} Qd6 {[%emt 0:26:09]} 14. b5 {[%emt 0:02:57]} axb5 {[%emt 0:03:04]} 15. axb5 {[%emt 0:00:08]} Rxa1 {[%emt 0:10:04]} 16. Rxa1 {[%emt 0:00:30]} Bxf3 {[%emt 0:03:22]} 17. Bxf3 {[%emt 0:00:19]} b6 {[%emt 0:00:33]} 18. Ra7 {[%emt 0:08:16]} Bd8 {[%emt 0:00:12]} 19. Na2 {[%emt 0:04:52]} e5 {[%emt 0:01:43]} 20. dxe5 {[%emt 0:03:09]} Qxe5 {[%emt 0:00:09]} 21. Nb4 {[%emt 0:00:26]} Qd6 {[%emt 0:04:05]} 22. Nc6 {[%emt 0:05:35]} Ne8 {[%emt 0:00:49]} 23. Bd5 {[%emt 0:07:26]} Nf6 {[%emt 0:04:07]} 24. Bxf7+ {[%emt 0:04:17]} Kh7 {[%emt 0:04:55]} 25. Qe6 {[%emt 0:07:05]} Qc5 {[%emt 0:00:52]} 26. Ne5 {[%emt 0:03:11]} g5 {[%emt 0:03:42]} 27. Qf5+ {[%emt 0:04:02]} 1-0

[Event "23rd OIBM 2019"]
[Site "Gmund am Tegernsee"]
[Date "2019.10.29"]
[Round "4.20"]
[White "Kolb, Tobias"]
[Black "Bellia, Fabrizio"]
[Result "0-1"]
[ECO "C28"]
[WhiteElo "2073"]
[BlackElo "2433"]
[Annotator "ChessBase"]
[PlyCount "68"]
[EventDate "2019.10.17"]
[EventType "swiss"]
[EventCountry "GER"]
[SourceTitle "playchess.com"]
[Source "ChessBase"]
[SourceQuality "1"]
[TimeControl "40/5400+30:1800+30"]

1. e4 {[%emt 0:00:00]} e5 {[%emt 0:00:00]} 2. Bc4 {[%emt 0:00:00]} Nf6 {[%emt 0:00:00]} 3. Nc3 {[%emt 0:00:00]} Nc6 {[%emt 0:00:00]} 4. d3 {[%emt 0:00:00]} Na5 {[%emt 0:00:00]} 5. Qf3 {[%emt 0:00:00]} Nxc4 {[%emt 0:05:45]} 6. dxc4 {[%emt 0:00:10]} d6 {[%emt 0:00:22]} 7. h3 {[%emt 0:00:20]} c6 {[%emt 0:00:48]} 8. Bg5 {[%emt 0:05:57]} Be7 {[%emt 0:00:22]} 9. Nge2 {[%emt 0:01:00]} Be6 {[%emt 0:02:14]} 10. b3 {[%emt 0:00:05]} h6 {[%emt 0:05:59]} 11. Bxf6 {[%emt 0:01:57]} Bxf6 {[%emt 0:01:53]} 12. O-O {[%emt 0:00:30]} Qe7 {[%emt 0:03:53]} 13. Rad1 {[%emt 0:12:47]} O-O {[%emt 0:02:05]} 14. Rd3 {[%emt 0:11:40]} Bg5 {[%emt 0:02:36]} 15. g4 {[%emt 0:03:36]} h5 {[%emt 0:08:54]} 16. Qg2 {[%emt 0:23:40]} hxg4 {[%emt 0:08:50]} 17. hxg4 {[%emt 0:00:04]} g6 {[%emt 0:00:10]} 18. Rfd1 {[%emt 0:05:41]} Kg7 {[%emt 0:05:12]} 19. Rh3 {[%emt 0:08:39]} Rh8 {[%emt 0:02:27]} 20. Rdd3 {[%emt 0:00:05]} Qd7 {[%emt 0:10:17]} 21. Rxh8 {[%emt 0:01:04]} Rxh8 {[%emt 0:00:07]} 22. c5 {[%emt 0:00:22]} Rh4 {[%emt 0:03:19]} 23. Rxd6 {[%emt 0:02:58]} Qc7 {[%emt 0:06:26]} 24. Ng3 {[%emt 0:04:45]} Rxg4 {[%emt 0:01:20]} 25. f3 {[%emt 0:00:39]} Be3+ {[%emt 0:00:33]} 26. Kf1 {[%emt 0:00:04]} Rg5 {[%emt 0:00:28]} 27. Nce2 {[%emt 0:02:03]} Qe7 {[%emt 0:02:02]} 28. Qh2 {[%emt 0:05:55]} Bxc5 {[%emt 0:01:14]} 29. Rd1 {[%emt 0:00:30]} Bb6 {[%emt 0:01:47]} 30. Kg2 {[%emt 0:03:51]} Qc5 {[%emt 0:00:16]} 31. Kh1 {[%emt 0:01:46]} Qxc2 {[%emt 0:01:46]} 32. Nf5+ {[%emt 0:01:50]} Rxf5 {[%emt 0:01:13]} 33. Rc1 {[%emt 0:01:12]} Qxc1+ {[%emt 0:00:08]} 34. Nxc1 {[%emt 0:00:04]} Rh5 {[%emt 0:00:03]} 0-1